[Event "E Grand Swiss 2023"]
[Site "Douglas, Isle of Man"]
[Date "2023.11.05"]
[Round "11"]
[White "Vidit, Santosh Gujrathi"]
[Black "Predke, Alexandr"]
[Result "1-0"]
[WhiteElo "2715"]
[BlackElo "2661"]
[ECO "D27"]
[EventDate "2023.??.??"]
[Annotator "rafael"]
[PlyCount "93"]
[Beauty "7216887243784"]
[EventType "team-tourn"]
[EventCountry "IOM"]
[TimeControl "40/5400+30:1800+30"]

{[%evp 0,93,17,17,17,6,22,22,22,31,43,29,47,33,36,36,55,48,48,48,47,44,57,28,46,28,28,36,41,45,46,35,47,50,63,63,68,68,68,62,81,81,83,83,102,95,117,125,163,107,110,65,74,66,77,77,77,77,85,77,73,66,115,115,112,119,117,117,126,112,176,176,203,199,182,176,201,209,399,399,392,389,494,489,732,737,737,757,762,762,762,762,778,771,779,791]} 
1.d4 d5 2.c4 dxc4 3.Nf3 Nf6 4.e3 e6 5.Bxc4 a6 6.O-O c5 7.dxc5 {An excellent opening choice considering the state of the tournament. Since the Kramnik vs. Kasparov match, we know that this endgame from the Queen's Gambit Accepted is not as innocent as it seems. In a final round in which it's difficult to weigh how much risk is necessary; there's nothing better than a safe position, but with a chance of playing for victory.} 7...Bxc5 8.Qxd8+ Kxd8 9.Be2 {This bishop move is necessary sooner or later. It frees the c4-square for a knight and the bishop can go to f3 in many lines.} 9...Ke7 10.Nbd2 Bd7 11.Nb3 Bb6 12.Bd2 Nc6 13.Bc3 {So far we are following theory. Although both sides had options, we can say that the moves were natural. The game starts to get more subtle from now on.} 13...Rhg8 $5 {[%c_effect g8;square;g8;type;Interesting;persistent;true] An interesting move, very much in the style of the creative player with the black pieces, although it had already been tried before, so perhaps it was still preparation. The idea of the move is less about advancing the g-pawn, which we will see later, and more about protecting this pawn so that the knight can move to d5 or e4.} ( 13...Rhd8 {is the natural move, but now White can try} 14.Nfd2 $1 {[%c_effect d2;square;d2;type;GreatFind;persistent;true] followed by Nc4. Whether this is enough for an advantage is another matter.} ) 14.Rfd1 ( 14.Nfd2 $6 {[%c_effect d2;square;d2;type;Inaccuracy;persistent;true] Now this move is clearly inaccurate, and we can see the point of Black's play:} 14...Nd5 $1 {[%c_effect d5;square;d5;type;GreatFind;persistent;true] with an excellent position.} ) 14...Rad8 {A new move. The eternal problem of where the rooks should go. It's the 21st century and we still don't know the answer.} ( 14...Rac8 {seems more flexible. The g8-rook can be repositioned in due time.} 15.Rac1 ( 15.Ng5 Rgd8 16.Bf3 Be8 {with equal play in Kozul-Topalov, Sarajevo 2001.} ) 15...Ne4 16.Be1 Rgd8 {With good chances of equalizing.} ) ( 14...Nd5 {is untried, but also possible.} ) 15.Rac1 g5 $1 {[%c_effect g5;square;g5;type;GreatFind;persistent;true] Time to move the pawn. It's not an attacking move, of course. What Black really wants is to get the rook into play with g4-Rg5.} 16.Nfd4 Nxd4 $6 {[%c_effect d4;square;d4;type;Inaccuracy;persistent;true] A slight inaccuracy.} ( 16...Nd5 $1 {[%c_effect d5;square;d5;type;GreatFind;persistent;true] is a better way to fight for equality.} ) 17.Bb4+ $1 {[%c_effect b4;square;b4;type;GreatFind;persistent;true] The king has to go to an uncomfortable square.} 17...Ke8 18.Nxd4 g4 $6 {[%c_effect g4;square;g4;type;Inaccuracy;persistent;true] Black follows the plan, but here it would be better to play} ( 18...Nd5 $1 {[%c_effect d5;square;d5;type;GreatFind;persistent;true]} 19.Bc5 Bxc5 20.Rxc5 Rc8 21.Rxc8+ Bxc8 22.Bf3 Nf6 {with good drawing chances.} ) 19.Nb3 $1 {[%c_effect b3;square;b3;type;GreatFind;persistent;true] The knight prepares to go to c5.} 19...Rg5 ( 19...Rc8 {gives better chances, although Black is somewhat worse after} 20.Rxc8+ Bxc8 ) 20.Nc5 Bc6 $6 {[%c_effect c6;square;c6;type;Inaccuracy;persistent;true] This move has an interesting tactical point, but Vidit finds a very deep refutation. 20...Bxc5 and 20...Bc8 leads to suffering, but might be better, objectively.} ( 20...Bxc5 ) ( 20...Bc8 ) 21.Nxa6 $1 {[%c_effect a6;square;a6;type;GreatFind;persistent;true] Of course, both players saw this tactical theme instantly, but the question is more difficult than that.} 21...Nd7 {The a6-knight is suddenly a problem, but Vidit finds a superb solution.} ( 21...Bf3 {This is Black's main counterplay idea and has to be calculated precisely.} 22.Rxd8+ Kxd8 ( 22...Bxd8 23.h4 $1 {[%c_effect h4;square;h4;type;GreatFind;persistent;true] The same idea we will see in the main line, but this is a worse version for Black.} ) 23.h4 $1 {[%c_effect h4;square;h4;type;GreatFind;persistent;true] A wonderful idea that justifies White's play.} 23...Bxe2 ( 23...Rg8 24.Bd1 $3 {[%c_effect d1;square;d1;type;Brilliant;persistent;true] Another fantastic move that gives White the advantage. The point is that now White finally threatens to take the bishop and, if they are exchanged, the rook goes to d1 with check and White keeps the extra pawn.} ) 24.hxg5 Nd5 {The fight continues.} 25.Bc5 $1 {[%c_effect c5;square;c5;type;GreatFind;persistent;true]} ( 25.Nc5 {is not so convincing:} 25...Nxb4 26.Nxb7+ Ke7 27.a3 Nd5 28.Nc5 Bb5 {with drawing chances.} ) 25...Bxa6 26.Bxb6+ Nxb6 27.Kh2 $1 {[%c_effect h2;square;h2;type;GreatFind;persistent;true] The king marches to g3 and the endgame is difficult for Black.} ) 22.Bf1 $3 {[%c_effect f1;square;f1;type;Brilliant;persistent;true] This is such a brilliant move, my favorite of the game. It's so beautiful because we don't expect a simple bishop withdrawal in a position like this. Furthermore, it shows how attentive Vidit was to his opponent's resources. It's the best move according to the machine, which makes it even more stunning. The idea is prophylaxis directed against the tactical ...Bc6-f3.} ( 22.Be1 $2 {[%c_effect e1;square;e1;type;Mistake;persistent;true] We first think: Why not just move the b4-bishop so the knight can go back $2 After all, if it's taken, we can capture the c6-bishop. But then comes the shocker} 22...Bf3 $1 {[%c_effect f3;square;f3;type;GreatFind;persistent;true] and the tables are turned $1} ) ( 22.Bd6 $2 {[%c_effect d6;square;d6;type;Mistake;persistent;true] is met with the same idea.} 22...Bf3 $1 {[%c_effect f3;square;f3;type;GreatFind;persistent;true]} ) ( 22.Kf1 {is a sensible way of avoiding Black's trick, but it's not so good because the king is not well-placed on f1.} 22...Rc8 $1 {[%c_effect c8;square;c8;type;GreatFind;persistent;true]} 23.Bd6 bxa6 24.Bxa6 Bb5+ $1 {[%c_effect b5;square;b5;type;GreatFind;persistent;true] This is the difference.} 25.Bxb5 Rxc1 26.Rxc1 Rxb5 27.Rc8+ Bd8 28.Bc7 {White is still better, but the endgame is not so clear after} 28...Rc5 $1 {[%c_effect c5;square;c5;type;GreatFind;persistent;true]} 29.Rxd8+ Ke7 30.Rc8 Rc1+ 31.Ke2 Rc2+ {with drawing chances.} ) 22...Ra8 ( 22...Rc8 {This no longer works:} 23.Bd6 $1 {[%c_effect d6;square;d6;type;GreatFind;persistent;true]} 23...bxa6 24.Bxa6 {White wins material as there's no check on b5.} ) ( 22...h5 {is the best attempt according to the computer, but I find the move hard to understand.} 23.Bd6 Nf6 24.Nb4 Ne4 25.Nxc6 Rxd6 26.Rxd6 Nxd6 27.Nb4 {with good winning chances for White with an extra pawn.} ) 23.Bd6 $1 {[%c_effect d6;square;d6;type;GreatFind;persistent;true] The knight is ready to go back.} 23...Ba4 24.Bf4 ( 24.b3 $1 {[%c_effect b3;square;b3;type;GreatFind;persistent;true] is even better:} 24...bxa6 ( 24...Bxb3 25.axb3 bxa6 26.g3 $1 {[%c_effect g3;square;g3;type;GreatFind;persistent;true] This is a nice idea that shows up in some lines. The bishop goes to the powerful h1-a8 diagonal.} ) 25.bxa4 {With a winning position, thanks to the pair of bishops.} ) 24...Ra5 ( 24...Bxd1 {is a better chance, although the endgame is difficult after} 25.Bxg5 Ba4 26.Nb4 ) 25.Nc7+ ( 25.b3 $1 {[%c_effect b3;square;b3;type;GreatFind;persistent;true] is good again:} 25...Bxb3 ( 25...bxa6 26.bxa4 Rxa4 27.g3 $1 {[%c_effect g3;square;g3;type;GreatFind;persistent;true] This is not an easy move to see, but after the bishop goes to g2, White is simply winning.} ) 26.axb3 bxa6 {Here White has many tempting continuations. The position is easily winning for a player like Vidit.} ) 25...Bxc7 26.Bxc7 Bxd1 27.Bxa5 Rxa5 28.Rxd1 {White wins a pawn, since the rook cannot capture on a2.} 28...Ne5 ( 28...Rxa2 $2 {[%c_effect a2;square;a2;type;Mistake;persistent;true]} 29.Bb5 {and the knight is lost.} ) 29.a4 Rc5 {Black activates the rook, but White finds a strong reply.} 30.Rd4 $1 {[%c_effect d4;square;d4;type;GreatFind;persistent;true] The rook is going to b4.} 30...Rc1 31.Rb4 ( 31.Re4 $5 {[%c_effect e4;square;e4;type;Interesting;persistent;true] is a subtle move that maybe makes the task easier.} 31...f6 32.Rb4 {The pawn on f6 worsens the seventh rank, and this is an even better version of the game.} ) 31...Rb1 ( 31...Ra1 $1 {[%c_effect a1;square;a1;type;GreatFind;persistent;true] is the only chance.} 32.b3 Ke7 33.Rxb7+ Kf6 {Despite being two pawns up, the position is not so easy for White to win. Black's pieces are very active.} ) 32.f4 $1 {[%c_effect f4;square;f4;type;GreatFind;persistent;true] Now the conversion is smooth.} 32...gxf3 33.gxf3 Nxf3+ 34.Kg2 Nd2 35.Bd3 Re1 36.Kf2 Rh1 37.Kg2 Re1 38.Rxb7 Rxe3 39.Bb5+ Kf8 40.a5 {The pawns cannot be stopped. The rest is agony.} 40...Re5 41.a6 Rg5+ 42.Kf2 Ne4+ 43.Ke3 Nd6 44.a7 Re5+ 45.Kf3 Rf5+ 46.Kg2 Rg5+ 47.Kh1 1-0

[Event "Saint Louis Rapid & Blitz 2023"]
[Site "Saint Louis"]
[Date "2023.11.18"]
[Round "27"]
[White "Caruana, Fabiano"]
[Black "Vachier Lagrave, Maxime"]
[Result "1/2-1/2"]
[WhiteElo "2765"]
[BlackElo "2771"]
[ECO "D47"]
[EventDate "2023.??.??"]
[Annotator "rafael"]
[PlyCount "128"]
[Beauty "4953171045908"]
[EventType "blitz"]
[TimeControl "600+5"]

{[%evp 0,128,20,23,27,15,22,22,15,30,29,38,35,20,20,20,20,18,16,19,14,-4,-6,-6,-6,-2,25,25,25,25,27,32,32,11,24,23,26,0,0,0,30,29,27,30,30,17,17,21,31,31,32,16,16,0,24,-24,20,8,30,16,17,8,16,23,17,25,19,19,18,19,24,30,18,11,13,16,5,0,0,0,44,0,0,0,15,0,6,6,17,-33,-31,-42,-38,-35,-40,-48,-50,-53,-43,-47,-35,-70,-74,-62,-63,-90,-86,-83,73,-74,-69,-102,-92,-167,-174,-167,14,13,12,13,15,13,12,17,19,18,19,18,19,0,0]} 
1.d4 Nf6 2.c4 e6 3.Nc3 d5 4.Nf3 c6 5.e3 Nbd7 6.Bd3 dxc4 7.Bxc4 b5 8.Be2 $5 {[%c_effect e2;square;e2;type;Interesting;persistent;true] I wouldn't call this move a \"sideline\", but it's much less popular than 8.Bd3.} ( 8.Bd3 ) 8...a6 {Black has many ways to play and I leave the subtleties of move orders to the Semi-Slav experts. Some possibilities:} ( 8...Bb7 9.O-O a6 ( {Or} 9...b4 10.Na4 Be7 11.b3 O-O 12.Bb2 {when the position is close to equality.} ) 10.e4 c5 11.d5 exd5 12.e5 Ne4 13.Nxd5 {Along these lines we begin to observe the advantage of having the bishop on e2 and not on d3: the queen has an expanded range of action on the d-file.} 13...Nxe5 14.Nxe5 Qxd5 15.Qxd5 Bxd5 16.Rd1 Be6 17.a4 {Practice has shown that the position is equal, but Black must still be accurate.} ) 9.O-O ( 9.e4 {is an important alternative.} 9...b4 ( 9...c5 $2 {[%c_effect c5;square;c5;type;Mistake;persistent;true]} 10.e5 cxd4 11.Qxd4 {With a clear advantage for White. Again we see the plus side of having the bishop on e2.} ) 10.e5 bxc3 11.exf6 Nxf6 $1 {[%c_effect f6;square;f6;type;GreatFind;persistent;true]} ( 11...cxb2 $6 {[%c_effect b2;square;b2;type;Inaccuracy;persistent;true]} 12.fxg7 Bxg7 ( 12...bxa1=Q $2 {[%c_effect a1;square;a1;type;Mistake;persistent;true]} 13.gxh8=Q {The human imagination is always drawn to positions with four queens on the board, but they are usually more fun if enjoyed from afar rather than on our own board. Here White has a decisive advantage.} ) 13.Bxb2 {with the better position.} ) 12.bxc3 Bd6 13.O-O O-O {with good chances of equalizing.} ) 9...c5 ( 9...Bb7 10.e4 {transposes to the lines seen above.} ) 10.d5 exd5 ( 10...e5 {is positionally dubious, as the pawn on d5 is very strong and White can create a path on the queenside with the move a2-a4 at some point.} 11.Nd2 ) 11.Nxd5 Bb7 12.Nxf6+ Nxf6 ( 12...Qxf6 $1 {[%c_effect f6;square;f6;type;GreatFind;persistent;true] is more accurate, with a balanced game after} 13.a4 b4 14.e4 h6 ) 13.a4 b4 14.b3 {A new move. Caruana's game is a little passive at this point, perhaps influenced by the fact that he just needed a draw.} ( 14.Ne5 Bd6 15.Nc4 Bc7 {is slightly better for White: Maghsoodloo-Xiong, Aimchess Rapid 2023.} ) ( 14.Qxd8+ Rxd8 15.Ne5 {led to a win for White in Aronian-Donchenko, Meissen 2013.} ) 14...Bd6 15.Bb2 O-O 16.h3 {White has an excellent square for a knight or bishop on c4, but Black has a potent pair of bishops pointing at White's king, plus free development. The position is balanced.} 16...Ne4 17.Qc2 Qe7 18.Rad1 Rad8 19.Bc4 Ng5 ( 19...Bc7 {is simpler.} ) 20.Nxg5 Qxg5 21.f4 Qe7 22.Qe2 ( 22.Rde1 {give some hope of fighting for the initiative. For instance:} 22...Rfe8 ( 22...Be4 23.Qe2 ) 23.Qf5 $5 {[%c_effect f5;square;f5;type;Interesting;persistent;true] followed by 24.Qg4.} ) 22...Bc7 23.Rfe1 Kh8 $6 {[%c_effect h8;square;h8;type;Inaccuracy;persistent;true] Vachier-Lagrave wants to place the pawn on f6 to reduce the strength of the white bishops—an understandable decision. The machine, however, prefers} ( 23...a5 24.Qg4 g6 ) 24.Qg4 f6 25.Qe6 $6 {[%c_effect e6;square;e6;type;Inaccuracy;persistent;true]} ( 25.Rxd8 $1 {[%c_effect d8;square;d8;type;GreatFind;persistent;true] gives White a comfortable advantage after} 25...Rxd8 26.e4 $1 {[%c_effect e4;square;e4;type;GreatFind;persistent;true] This is the move that White is always looking for, and here it is possible since a capture leads to defeat.} 26...Bxe4 $2 {[%c_effect e4;square;e4;type;Mistake;persistent;true]} 27.f5 Re8 28.Re3 {The e4-bishop is pinned forever (until the moment it will be captured).} ) 25...Qxe6 26.Bxe6 Be4 {The position is equal again.} 27.Bc4 a5 28.Kf2 h5 29.g3 Kh7 30.Ke2 Kg6 31.Bd3 Bxd3+ 32.Rxd3 Rxd3 33.Kxd3 Rd8+ {We will have some interesting adventures in this endgame, which can be explained by the importance of the game and, mainly, by the little time on the clock.} 34.Ke2 ( 34.Kc4 {is also possible.} 34...Rd2 35.Ba1 ( 35.Bc1 Rc2+ 36.Kb5 Rc3 ( 36...Kf7 ) 37.Bb2 Rxb3 38.Re2 Rd3 39.Kxc5 {with equality.} ) 35...Rc2+ 36.Kb5 Kf7 {with a likely draw.} ) 34...c4 $6 {[%c_effect c4;square;c4;type;Inaccuracy;persistent;true] A bold decision. Needing victory, Vachier-Lagrave sacrifices a pawn in an attempt to complicate the game.} ( 34...Kf5 35.Rc1 Bd6 36.Kf3 Ke6 37.e4 {should end in a draw.} ) ( 34...Re8 35.Kd3 ( 35.Rd1 h4 $1 {[%c_effect h4;square;h4;type;GreatFind;persistent;true]} ) 35...Rd8+ 36.Ke2 {with a move repetition.} ) 35.bxc4 Bb6 36.c5 $6 {[%c_effect c5;square;c5;type;Inaccuracy;persistent;true] There is no need to return the pawn.} ( 36.e4 f5 $1 {[%c_effect f5;square;f5;type;GreatFind;persistent;true]} 37.e5 Kf7 {Black is OK.} ) ( 36.g4 $1 {[%c_effect g4;square;g4;type;GreatFind;persistent;true] is the best move, saving e4 for the moment when Black cannot play f6-f5. White has a clear advantage.} ) 36...Bxc5 37.Rc1 Bf8 {Again the endgame is equal. There are many possibilities for both sides in the next few moves, but I will advance the analysis to the next moment of emotion.} 38.g4 hxg4 39.hxg4 b3 $1 {[%c_effect b3;square;b3;type;GreatFind;persistent;true]} 40.Rc3 Rb8 41.Rc4 Bb4 42.Kd3 Rh8 43.Rc1 Rh4 44.Bd4 Rxg4 45.Rb1 Rg2 46.Rxb3 Ra2 47.e4 Rxa4 48.Rb1 {White has lost a pawn, but has enough activity for a draw.} 48...Kf7 49.Rc1 Ra3+ 50.Kc4 Bd2 51.Rf1 Rh3 ( 51...a4 52.f5 {with the idea of Rb1-b7.} ) 52.Ra1 ( 52.f5 {is also possible.} ) 52...Bxf4 53.Rxa5 Be3 $6 {[%c_effect e3;square;e3;type;Inaccuracy;persistent;true] This allows an immediate draw.} 54.Bc3 ( 54.Ra3 $1 {[%c_effect a3;square;a3;type;GreatFind;persistent;true] with a draw in many ways, for example:} 54...Bxd4 55.Rxh3 Be5 ) 54...Bf2 55.Ra6 Re3 56.e5 $2 {[%c_effect e5;square;e5;type;Mistake;persistent;true] Now White is losing.} ( 56.Ra7+ Kg6 57.Re7 {This is necessary, with excellent drawing chances.} ) 56...fxe5 57.Bd2 Re2 $2 {[%c_effect e2;square;e2;type;Mistake;persistent;true] An unfortunate square for the rook.} ( 57...Rf3 58.Bc3 Rf6 {keeps the two-pawn advantage and a winning position.} ) 58.Kd3 {The rook is trapped and the game quickly ends in a draw.} 58...Rxd2+ 59.Kxd2 Bd4 60.Kd3 g5 61.Ke4 Ke7 62.Rg6 Kf7 63.Rxg5 Ke7 64.Rxe5+ Bxe5 1/2-1/2